fUSD/lending_fUSD_20241209
["ID","MTS","AMOUNT","RATE_DAILY","PERIOD"]
[344743221,1733763106189,-1672.08589425,0.0001297,2]
[344743222,1733763106198,-591.34861356,0.0001297,2]
[344743223,1733763106208,-200.0,0.0001297,2]
[344743224,1733763106217,-200.0,0.0001297,2]
[344743225,1733763106226,-1051.28642412,0.0001297,2]
[344743226,1733763106235,-1051.28642412,0.00012971,2]
[344743227,1733763106246,-249.47519635,0.00012971,2]
[344743228,1733763106255,-15767.25350602,0.00012971,2]
[344743229,1733763106265,-1225.19652263,0.00012971,2]
[344743230,1733763106274,-529.05842748,0.00012971,2]
[344743231,1733763106284,-200.0,0.00012971,2]
[344743232,1733763106294,-11825.44012952,0.00012971,2]
[344743233,1733763106303,-8869.08009714,0.00012972,2]
[344743234,1733763106312,-200.0,0.00012972,2]
[344743235,1733763106321,-37374.2305328,0.00012972,2]
[344743236,1733763106330,-1868.953643,0.00012972,2]
[344743237,1733763106340,-443.51146017,0.00012972,2]
[344743238,1733763106349,-66443.07650276,0.00012973,2]
[344743239,1733763106359,-6372.87124337,0.00012973,2]
[344743240,1733763106369,-200.0,0.00012973,2]
[344743241,1733763106378,-15767.25350602,0.00012973,2]
[344743242,1733763106388,-297.59536545,0.00012973,2]
[344743243,1733763106415,-200.0,0.00012973,2]
[344743244,1733763106425,-200.0,0.00012974,2]
[344743245,1733763106434,-28030.6728996,0.00012974,2]
[344743246,1733763106443,-297.59536545,0.00012974,2]
[344743247,1733763106453,-332.63359513,0.00012974,2]
[344743248,1733763106463,-200.0,0.00012974,2]
[344743249,1733763106472,-1401.71523215,0.00012974,2]
[344743250,1733763106481,-1051.28642412,0.00012974,2]
[344743251,1733763106491,-1225.19652263,0.00012974,2]
[344743252,1733763106501,-200.0,0.00012974,2]
[344743253,1733763106510,-1254.06442069,0.00012974,2]
[344743254,1733763106520,-218.05865845,0.00012974,2]
[344743255,1733763106530,-11825.44012952,0.00012974,2]
[344743256,1733763106540,-6372.87124337,0.00012974,2]
[344743257,1733763106550,-705.41123664,0.00012974,2]
[344743258,1733763106560,-249.47519635,0.00012974,2]
[344743259,1733763106570,-516.87978299,0.00012974,2]
[344743260,1733763106583,-387.65983724,0.00012975,2]
[344743261,1733763106593,-66443.07650276,0.00012975,2]
[344743262,1733763106603,-1633.59536352,0.00012975,2]
[344743263,1733763106612,-28030.6728996,0.00012976,2]
[344743264,1733763106622,-200.0,0.00012976,2]
[344743265,1733763106632,-8869.08009714,0.00012976,2]
[344743266,1733763106642,-200.0,0.00012976,2]
[344743267,1733763106653,-223.19652409,0.00012976,2]
[344743268,1733763106664,-200.0,0.00012976,2]
[344743269,1733763106674,-591.34861356,0.00012976,2]
[344743270,1733763106683,-443.51146017,0.00012976,2]
[344743271,1733763106692,-332.63359513,0.00012976,2]
[344743272,1733763106701,-28030.6728996,0.00012976,2]
[344743273,1733763106711,-940.54831551,0.00012977,2]
[344743274,1733763106721,-11825.44012952,0.00012977,2]
[344743275,1733763106731,-8497.16165783,0.00012977,2]
[344743276,1733763106741,-788.46481809,0.00012977,2]
[344743277,1733763106752,-290.74487793,0.00012977,2]
[344743278,1733763106762,-218.05865845,0.00012977,2]
[344743279,1733763106771,-200.0,0.00012977,2]
[344743280,1733763106781,-11329.54887711,0.00012977,2]
[344743281,1733763106792,-290.74487793,0.00012978,2]
[344743282,1733763106801,-223.19652409,0.00012978,2]
[344743283,1733763106810,-1672.08589425,0.00012978,2]
[344743284,1733763106820,-37374.2305328,0.00012978,2]
[344743285,1733763106829,-200.0,0.00012978,2]
[344743286,1733763106839,-1254.06442069,0.00012979,2]
[344743287,1733763106849,-15767.25350602,0.00012979,2]
[344743288,1733763106859,-200.0,0.00012979,2]
[344743289,1733763106868,-387.65983724,0.00012979,2]
[344743290,1733763106876,-1051.28642412,0.00012979,2]
[344743291,1733763106885,-8497.16165783,0.00012979,2]
[344743292,1733763106895,-1633.59536352,0.00012979,2]
[344743293,1733763106907,-11825.44012952,0.0001298,2]
[344743294,1733763106932,-918.89739198,0.0001298,2]
[344743295,1733763106942,-200.0,0.0001298,2]
[344743296,1733763106952,-200.0,0.0001298,2]
[344743297,1733763106962,-88590.76867034,0.0001298,2]
[344743298,1733763106971,-1868.953643,0.0001298,2]
[344743299,1733763106980,-1051.28642412,0.0001298,2]
[344743300,1733763106989,-689.17304398,0.0001298,2]
[344743301,1733763106999,-28030.6728996,0.0001298,2]
[344743302,1733763107008,-332.63359513,0.00012981,2]
[344743303,1733763107018,-249.47519635,0.00012981,2]
[344743304,1733763107027,-200.0,0.00012981,2]
[344743305,1733763107037,-8869.08009714,0.00012981,2]
[344743306,1733763107047,-8497.16165783,0.00012981,2]
[344743307,1733763107057,-1868.953643,0.00012982,2]
[344743308,1733763107067,-37374.2305328,0.00012982,2]
[344743309,1733763107076,-11329.54887711,0.00012982,2]
[344743310,1733763107086,-8869.08009714,0.00012982,2]
[344743311,1733763107095,-4779.65343253,0.00012982,2]
[344743312,1733763107106,-200.0,0.00012982,2]
[344743313,1733763107115,-248.0,0.00012982,2]
[344743314,1733763107125,-290.74487793,0.00012982,2]
[344743315,1733763107134,-200.0,0.00012982,2]
[344743316,1733763107144,-6651.81007285,0.00012982,2]
[344743317,1733763107154,-396.79382061,0.00012983,2]
[344743318,1733763107163,-4779.65343253,0.00012983,2]
[344743319,1733763107172,-200.0,0.00012983,2]
[344743320,1733763107183,-788.46481809,0.00012983,2]
[344743321,1733763107192,-689.17304398,0.00012983,2]
[344743322,1733763107202,-88590.76867034,0.00012983,2]
[344743323,1733763107212,-297.59536545,0.00012984,2]
[344743324,1733763107222,-8497.16165783,0.00012984,2]
[344743325,1733763107231,-443.51146017,0.00012984,2]
[344743326,1733763107241,-297.59536545,0.00012984,2]
[344743327,1733763107250,-4988.85755464,0.00012984,2]
[344743328,1733763107259,-529.05842748,0.00012984,2]
[344743329,1733763107270,-21023.0046747,0.00012985,2]
[344743330,1733763107280,-200.0,0.00012985,2]
[344743331,1733763107290,-1051.28642412,0.00012985,2]
[344743332,1733763107299,-88590.76867034,0.00012985,2]
[344743333,1733763107309,-4779.65343253,0.00012985,2]
[344743334,1733763107318,-1254.06442069,0.00012985,2]
[344743335,1733763107328,-1225.19652263,0.00012985,2]
[344743336,1733763107338,-200.0,0.00012985,2]
[344743337,1733763107347,-11329.54887711,0.00012985,2]
[344743338,1733763107356,-11329.54887711,0.00012985,2]
[344743339,1733763107367,-200.0,0.00012986,2]
[344743340,1733763107376,-8497.16165783,0.00012986,2]
[344743341,1733763107385,-28030.6728996,0.00012986,2]
[344743342,1733763107394,-529.05842748,0.00012986,2]
[344743343,1733763107403,-200.0,0.00012986,2]
[344743344,1733763107412,-11825.44012952,0.00012986,2]
[344743345,1733763107423,-49832.30737707,0.00012987,2]
[344743346,1733763107450,-200.0,0.00012987,2]
[344743347,1733763107459,-788.46481809,0.00012987,2]
[344743348,1733763107469,-66443.07650276,0.00012987,2]
[344743349,1733763107479,-1868.953643,0.00012987,2]
[344743350,1733763107488,-28030.6728996,0.00012987,2]
[344743351,1733763107498,-6372.87124337,0.00012987,2]
[344743352,1733763107507,-2178.12715135,0.00012987,2]
[344743353,1733763107517,-705.41123664,0.00012987,2]
[344743354,1733763107527,-1225.19652263,0.00012987,2]
[344743355,1733763107536,-516.87978299,0.00012987,2]
[344743356,1733763107545,-37374.2305328,0.00012987,2]
[344743357,1733763107555,-1401.71523215,0.00012987,2]
[344743358,1733763107563,-200.0,0.00012988,2]
[344743359,1733763107573,-1401.71523215,0.00012988,2]
[344743360,1733763107586,-689.17304398,0.00012988,2]
[344743361,1733763107596,-223.19652409,0.00012988,2]
[344743362,1733763107605,-200.0,0.00012988,2]
[344743363,1733763107616,-1000.0,0.00012988,2]
[344743364,1733763107625,-689.17304398,0.00012988,2]
[344743365,1733763107635,-223.19652409,0.00012988,2]
[344743366,1733763107644,-37374.2305328,0.00012988,2]
[344743367,1733763107656,-8497.16165783,0.00012988,2]
[344743368,1733763107667,-15767.25350602,0.00012989,2]
[344743369,1733763107676,-1401.71523215,0.00012989,2]
[344743370,1733763107685,-516.87978299,0.00012989,2]
[344743371,1733763107695,-1868.953643,0.00012989,2]
[344743372,1733763107705,-591.34861356,0.00012989,2]
[344743373,1733763107714,-200.0,0.00012989,2]
[344743374,1733763107724,-443.51146017,0.0001299,2]
[344743375,1733763107734,-200.0,0.0001299,2]
[344743376,1733763107743,-1633.59536352,0.0001299,2]
[344743377,1733763107753,-591.34861356,0.0001299,2]
[344743378,1733763107762,-6651.81007285,0.0001299,2]
[344743379,1733763107772,-4779.65343253,0.00012991,2]
[344743380,1733763107781,-689.17304398,0.00012991,2]
[344743381,1733763107790,-200.0,0.00012991,2]
[344743382,1733763107799,-1633.59536352,0.00012991,2]
[344743383,1733763107808,-387.65983724,0.00012991,2]
[344743384,1733763107818,-4988.85755464,0.00012991,2]
[344743385,1733763107827,-1672.08589425,0.00012991,2]
[344743386,1733763107836,-88590.76867034,0.00012991,2]
[344743387,1733763107846,-21023.0046747,0.00012991,2]
[344743388,1733763107855,-788.46481809,0.00012991,2]
[344743389,1733763107864,-49832.30737707,0.00012992,2]
[344743390,1733763107873,-218.05865845,0.00012992,2]
[344743391,1733763107883,-387.65983724,0.00012992,2]
[344743392,1733763107892,-11329.54887711,0.00012992,2]
[344743393,1733763107900,-200.0,0.00012992,2]
[344743394,1733763107909,-200.0,0.00012992,2]
[344743395,1733763107919,-6372.87124337,0.00012992,2]
[344743396,1733763107928,-516.87978299,0.00012992,2]
[344743397,1733763107944,-2904.16953514,0.00012993,2]
[344743398,1733763107964,-516.87978299,0.00012993,2]
[344743399,1733763107974,-2904.16953514,0.00012993,2]
[344743400,1733763107983,-21023.0046747,0.00012993,2]
[344743401,1733763107993,-21023.0046747,0.00012993,2]
[344743402,1733763108003,-1868.953643,0.00012993,2]
[344743403,1733763108013,-66443.07650276,0.00012993,2]
[344743404,1733763108022,-1225.19652263,0.00012993,2]
[344743405,1733763108031,-2178.12715135,0.00012994,2]
[344743406,1733763108042,-218.05865845,0.00012994,2]
[344743407,1733763108052,-49832.30737707,0.00012994,2]
[344743408,1733763108060,-200.0,0.00012994,2]
[344743409,1733763108069,-591.34861356,0.00012994,2]
[344743410,1733763108079,-4988.85755464,0.00012994,2]
[344743411,1733763108090,-443.51146017,0.00012994,2]
[344743412,1733763108099,-2904.16953514,0.00012995,2]
[344743413,1733763108109,-200.0,0.00012995,2]
[344743414,1733763108119,-88590.76867034,0.00012995,2]
[344743415,1733763108259,-297.59536545,0.00012995,2]
[344743416,1733763108283,-200.0,0.00012995,2]
[344743417,1733763108293,-4779.65343253,0.00012995,2]
[344743418,1733763108303,-788.46481809,0.00012995,2]
[344743419,1733763108312,-591.34861356,0.00012995,2]
[344743420,1733763108322,-396.79382061,0.00012995,2]
[344743421,1733763108333,-200.0,0.00012995,2]
[344743422,1733763108343,-223.19652409,0.00012996,2]
[344743423,1733763108352,-940.54831551,0.00012996,2]
[344743424,1733763108362,-21023.0046747,0.00012996,2]
[344743425,1733763108372,-529.05842748,0.00012996,2]
[344743426,1733763108383,-200.0,0.00012996,2]
[344743427,1733763108392,-200.0,0.00012996,2]
[344743428,1733763108403,-788.46481809,0.00012996,2]
[344743429,1733763108413,-918.89739198,0.00012996,2]
[344743430,1733763108428,-6651.81007285,0.00012996,2]
[344743431,1733763108438,-249.47519635,0.00012997,2]
[344743432,1733763108454,-1401.71523215,0.00012997,2]
[344743433,1733763108467,-66443.07650276,0.00012997,2]
[344743434,1733763108476,-516.87978299,0.00012997,2]
[344743435,1733763108490,-396.79382061,0.00012997,2]
[344743436,1733763108499,-940.54831551,0.00012997,2]
[344743437,1733763108509,-200.0,0.00012998,2]
[344743438,1733763108519,-1401.71523215,0.00012998,2]
[344743439,1733763108528,-332.63359513,0.00012998,2]
[344743440,1733763108538,-6372.87124337,0.00012998,2]
[344743441,1733763108547,-705.41123664,0.00012998,2]
[344743442,1733763108562,-705.41123664,0.00012999,2]
[344743443,1733763108574,-297.59536545,0.00012999,2]
[344743444,1733763108587,-200.0,0.00012999,2]
[344743445,1733763108600,-2178.12715135,0.00012999,2]
[344743446,1733763108610,-1633.59536352,0.00012999,2]
[344743447,1733763108623,-249.47519635,0.00012999,2]
[344743448,1733763108633,-387.65983724,0.00013,2]
[344743449,1733763108644,-443.51146017,0.00013,2]
[344743450,1733763108655,-200.0,0.00013,2]
[344743451,1733763108666,-2904.16953514,0.00013,2]
[344743452,1733763108676,-918.89739198,0.00013,2]
[344743453,1733763108687,-200.0,0.00013,2]
[344743454,1733763108697,-202.3,0.00013,2]
[344743455,1733763108707,-8417535.7491382,0.00013,2]
[344743456,1733763108717,-10772062.64896254,0.00013,2]
[344743457,1733763108727,-151.0,0.00013,2]
[344743458,1733763108736,-151.0,0.00013,2]
[344743459,1733763108747,-151.0,0.00013,2]
[344743460,1733763108757,-151.0,0.00013,2]
[344743461,1733763108767,-151.0,0.00013,2]
[344743462,1733763108776,-151.0,0.00013,2]
[344743463,1733763108786,-151.0,0.00013,2]
[344743464,1733763108795,-151.0,0.00013,2]
[344743465,1733763108805,-151.0,0.00013,2]
[344743466,1733763108815,-1633.59536352,0.00013,2]
[344743467,1733763108824,-200.781918,0.00013,2]
[344743468,1733763108833,-151.0,0.00013,2]
[344743469,1733763108843,-151.0,0.00013,2]
[344743470,1733763108852,-450.0,0.00013,2]
[344743471,1733763108862,-151.0,0.00013,2]
[344743472,1733763108872,-573.492229,0.00013,2]
[344743473,1733763108882,-573.492229,0.00013,2]
[344743474,1733763108891,-151.0,0.00013,2]
[344743475,1733763108901,-151.0,0.00013,2]
[344743476,1733763108911,-151.0,0.00013,2]
[344743477,1733763108921,-211.836924,0.00013,2]
[344743478,1733763108931,-211.836924,0.00013,2]
[344743479,1733763108951,-161.988454,0.00013,2]
[344743480,1733763108962,-211.305118,0.00013,2]
[344743481,1733763108979,-211.305118,0.00013,2]
[344743482,1733763108988,-151.0,0.00013,2]
[344743483,1733763108999,-151.0,0.00013,2]
[344743484,1733763109008,-151.0,0.00013,2]
[344743485,1733763109019,-151.0,0.00013,2]
[344743486,1733763109029,-151.0,0.00013,2]
[344743487,1733763109039,-151.0,0.00013,2]
[344743488,1733763109049,-151.0,0.00013,2]
[344743489,1733763109060,-151.0,0.00013,2]
[344743490,1733763109070,-151.0,0.00013,2]
[344743491,1733763109079,-485.648918,0.00013,2]
[344743492,1733763109089,-485.648918,0.00013,2]
[344743493,1733763109099,-151.0,0.00013,2]
[344743494,1733763109109,-151.0,0.00013,2]
[344743495,1733763109119,-151.0,0.00013,2]
[344743496,1733763109129,-151.0,0.00013,2]
[344743497,1733763109139,-792.922009,0.00013,2]
[344743498,1733763109148,-792.922009,0.00013,2]
[344743499,1733763109158,-288.573388,0.00013,2]
[344743500,1733763109168,-151.0,0.00013,2]
[344743501,1733763109178,-151.0,0.00013,2]
[344743502,1733763109188,-288.573388,0.00013,2]
[344743503,1733763109208,-151.0,0.00013,2]
[344743504,1733763109219,-151.0,0.00013,2]
[344743505,1733763109229,-151.0,0.00013,2]
[344743506,1733763109238,-151.0,0.00013,2]
[344743507,1733763109248,-151.0,0.00013,2]
[344743508,1733763109258,-230.75655,0.00013,2]
[344743509,1733763109268,-230.75655,0.00013,2]
[344743510,1733763109278,-151.0,0.00013,2]
[344743511,1733763109288,-151.0,0.00013,2]
[344743512,1733763109299,-151.0,0.00013,2]
[344743513,1733763109308,-151.0,0.00013,2]
[344743514,1733763109319,-2453.246892,0.00013,2]
[344743515,1733763109328,-169.48711978,0.00013008,2]
[344743516,1733763109338,-436.52,0.00013021,2]
[344743517,1733763109348,-337.42,0.00013054,2]
[344743518,1733763109358,-1056.0,0.00013109,2]
[344743519,1733763109368,-150.0,0.00013151,2]
[344743520,1733763109378,-150.0,0.00013151,2]
[344743521,1733763109388,-240.0,0.0001322,2]
[344743522,1733763109397,-150.0,0.00013259,2]
[344743523,1733763109407,-166.76,0.00013289,2]
[344743524,1733763109417,-4540.44,0.00013424,2]
[344743525,1733763109427,-4540.44,0.00013424,2]
[344743526,1733763109437,-4540.44,0.00013424,2]
[344743527,1733763109452,-4540.44,0.00013424,2]
[344743528,1733763109467,-4540.44,0.00013424,2]
[344743529,1733763109477,-4540.44,0.00013424,2]
[344743530,1733763109487,-4540.44,0.00013424,2]
[344743531,1733763109497,-4540.44,0.00013424,2]
[344743532,1733763109507,-4540.44,0.00013424,2]
[344743533,1733763109517,-4540.44,0.00013424,2]
[344743534,1733763109527,-4540.44,0.00013424,2]
[344743535,1733763109536,-4540.44,0.00013424,2]
[344743536,1733763109546,-4540.44,0.00013424,2]
[344743537,1733763109555,-4540.44,0.00013424,2]
[344743538,1733763109565,-4540.44,0.00013424,2]
[344743539,1733763109575,-4540.44,0.00013424,2]
[344743540,1733763109591,-4540.44,0.00013424,2]
[344743541,1733763109602,-4540.44,0.00013424,2]
[344743542,1733763109611,-4540.44,0.00013424,2]
[344743543,1733763109621,-4540.44,0.00013424,2]
[344743544,1733763109631,-4540.44,0.00013424,2]
[344743545,1733763109640,-4540.44,0.00013424,2]
[344743546,1733763109649,-4540.44,0.00013424,2]
[344743547,1733763109662,-4540.61358298,0.00013424,2]
[344743548,1733763109672,-300.0,0.00013425,2]
[344743549,1733763109682,-167.44,0.00013483,2]
[344743550,1733763109691,-1000.0,0.000135,2]
[344743551,1733763109713,-616.78,0.00013692,2]
[344743552,1733763109722,-728.35,0.00013698,2]
[344743553,1733763109732,-728.35,0.00013698,2]
[344743554,1733763109741,-728.35,0.00013698,2]
[344743555,1733763109750,-728.35,0.00013698,2]
[344743556,1733763109759,-728.35,0.00013698,2]
[344743557,1733763109768,-728.35,0.00013698,2]
[344743558,1733763109777,-728.35,0.00013698,2]
[344743559,1733763109787,-728.35,0.00013698,2]
[344743560,1733763109796,-728.35,0.00013698,2]
[344743561,1733763109806,-728.35,0.00013698,2]
[344743562,1733763109815,-728.35,0.00013698,2]
[344743563,1733763109824,-728.35,0.00013698,2]
[344743564,1733763109833,-728.35,0.00013698,2]
[344743565,1733763109843,-728.35,0.00013698,2]
[344743566,1733763109851,-728.35,0.00013698,2]
[344743567,1733763109861,-728.35,0.00013698,2]
[344743568,1733763109871,-728.35,0.00013698,2]
[344743569,1733763109880,-728.35,0.00013698,2]
[344743570,1733763109889,-728.35,0.00013698,2]
[344743571,1733763109898,-728.35,0.00013698,2]
[344743572,1733763109907,-728.35,0.00013698,2]
[344743573,1733763109916,-728.35,0.00013698,2]
[344743574,1733763109925,-728.35,0.00013698,2]
[344743575,1733763109934,-728.48659697,0.00013698,2]
[344743576,1733763109943,-1989.37,0.00013698,2]
[344743577,1733763109964,-1989.37,0.00013698,2]
[344743578,1733763109974,-1989.37,0.00013698,2]
[344743579,1733763109983,-1989.37,0.00013698,2]
[344743580,1733763109992,-1989.37,0.00013698,2]
[344743581,1733763110002,-1989.37,0.00013698,2]
[344743582,1733763110011,-1989.37,0.00013698,2]
[344743583,1733763110020,-1989.37,0.00013698,2]
[344743584,1733763110030,-1989.37,0.00013698,2]
[344743585,1733763110039,-1989.37,0.00013698,2]
[344743586,1733763110048,-1989.37,0.00013698,2]
[344743587,1733763110058,-1989.37,0.00013698,2]
[344743588,1733763110067,-1989.37,0.00013698,2]
[344743589,1733763110076,-1989.37,0.00013698,2]
[344743590,1733763110086,-1989.37,0.00013698,2]
[344743591,1733763110096,-1989.37,0.00013698,2]
[344743592,1733763110105,-1989.37,0.00013698,2]
[344743593,1733763110115,-1989.37,0.00013698,2]
[344743594,1733763110124,-1989.37,0.00013698,2]
[344743595,1733763110134,-1989.37,0.00013698,2]
[344743596,1733763110143,-1989.37,0.00013698,2]
[344743597,1733763110152,-1989.37,0.00013698,2]
[344743598,1733763110161,-1989.37,0.00013698,2]
[344743599,1733763110171,-1989.53113759,0.00013698,2]
[344743600,1733763110180,-516.10077332,0.00013698,2]
[344743601,1733763110190,-2332.93,0.00013698,2]
[344743602,1733763110210,-2332.93,0.00013698,2]
[344743603,1733763110220,-2332.93,0.00013698,2]
[344743604,1733763110229,-2332.93,0.00013698,2]
[344743605,1733763110238,-2332.93,0.00013698,2]
[344743606,1733763110248,-2332.93,0.00013698,2]
[344743607,1733763110257,-2332.93,0.00013698,2]
[344743608,1733763110267,-2332.93,0.00013698,2]
[344743609,1733763110276,-2332.93,0.00013698,2]
[344743610,1733763110286,-2332.93,0.00013698,2]
[344743611,1733763110296,-2332.93,0.00013698,2]
[344743612,1733763110307,-2332.93,0.00013698,2]
[344743613,1733763110316,-2332.93,0.00013698,2]
[344743614,1733763110325,-2332.93,0.00013698,2]
[344743615,1733763110336,-2332.93,0.00013698,2]
[344743616,1733763110346,-2332.93,0.00013698,2]
[344743617,1733763110355,-2332.93,0.00013698,2]
[344743618,1733763110364,-2332.93,0.00013698,2]
[344743619,1733763110373,-2332.93,0.00013698,2]
[344743620,1733763110382,-2332.93,0.00013698,2]
[344743621,1733763110391,-2332.93,0.00013698,2]
[344743622,1733763110400,-2332.93,0.00013698,2]
[344743623,1733763110409,-2332.93,0.00013698,2]
[344743624,1733763110418,-2332.9418678,0.00013698,2]
[344743625,1733763110428,-7500.0,0.00013698,2]
[344743626,1733763110438,-7500.0,0.00013698,2]
[344743627,1733763110455,-7500.0,0.00013698,2]
[344743628,1733763110467,-7500.0,0.00013698,2]
[344743629,1733763110477,-7500.0,0.00013698,2]
[344743630,1733763110487,-6825.55204993,0.00013698,2]
[344743631,1733763110496,-331.72014298,0.00013698,2]
[344743632,1733763110507,-541.84125481,0.00013698,2]
[344743633,1733763110517,-500.0,0.00013699,2]
[344743634,1733763110526,-500.0,0.00013699,2]
[344743635,1733763110535,-500.0,0.00013699,2]
[344743636,1733763110546,-500.0,0.00013699,2]
[344743637,1733763110555,-500.0,0.00013699,2]
[344743638,1733763110565,-500.0,0.00013699,2]
[344743639,1733763110576,-500.0,0.00013699,2]
[344743640,1733763110590,-500.0,0.00013699,2]
[344743641,1733763110600,-500.0,0.00013699,2]
[344743642,1733763110610,-500.0,0.00013699,2]
[344743643,1733763110621,-500.0,0.00013699,2]
[344743644,1733763110631,-500.0,0.00013699,2]
[344743645,1733763110640,-500.0,0.00013699,2]
[344743646,1733763110650,-500.0,0.00013699,2]
[344743647,1733763110659,-500.0,0.00013699,2]
[344743648,1733763110669,-500.0,0.00013699,2]
[344743649,1733763110678,-200.0,0.00013699,2]
[344743650,1733763110687,-800.0,0.00013699,2]
[344743651,1733763110701,-800.0,0.00013699,2]
[344743652,1733763110718,-800.0,0.00013699,2]
[344743653,1733763110727,-800.0,0.00013699,2]
[344743654,1733763110737,-800.0,0.00013699,2]
[344743655,1733763110746,-800.0,0.00013699,2]
[344743656,1733763110756,-800.0,0.00013699,2]
[344743657,1733763110765,-800.0,0.00013699,2]
[344743658,1733763110775,-800.0,0.00013699,2]
[344743659,1733763110784,-800.0,0.00013699,2]
[344743660,1733763110794,-800.0,0.00013699,2]
[344743661,1733763110804,-800.0,0.00013699,2]
[344743662,1733763110814,-800.0,0.00013699,2]
[344743663,1733763110823,-800.0,0.00013699,2]
[344743664,1733763110833,-800.0,0.00013699,2]
[344743665,1733763110842,-175.0,0.00013699,2]
[344743666,1733763110852,-800.0,0.00013699,2]
[344743667,1733763110861,-800.0,0.00013699,2]
[344743668,1733763110870,-800.0,0.00013699,2]
[344743669,1733763110880,-9786.13,0.00013699,2]
[344743670,1733763110889,-800.0,0.00013699,2]
[344743671,1733763110899,-32541.27,0.00013699,2]
[344743672,1733763110909,-250.0,0.00013699,2]
[344743673,1733763110918,-12557.28,0.00013699,2]
[344743674,1733763110927,-500.0,0.00013699,2]
[344743675,1733763110936,-800.0,0.00013699,2]
[344743676,1733763110946,-800.0,0.00013699,2]
[344743677,1733763110969,-200.0,0.00013699,2]
[344743678,1733763110979,-800.0,0.00013699,2]
[344743679,1733763110988,-33384.16,0.00013699,2]
[344743680,1733763110998,-258.6,0.00013699,2]
[344743681,1733763111008,-498.9,0.00013699,2]
[344743682,1733763111017,-800.0,0.00013699,2]
[344743683,1733763111026,-800.0,0.00013699,2]
[344743684,1733763111036,-800.0,0.00013699,2]
[344743685,1733763111046,-800.0,0.00013699,2]
[344743686,1733763111055,-469.324043,0.00013699,2]
[344743687,1733763111065,-469.324043,0.00013699,2]
[344743688,1733763111074,-800.0,0.00013699,2]
[344743689,1733763111084,-151.0,0.00013699,2]
[344743690,1733763111094,-800.0,0.00013699,2]
[344743691,1733763111103,-314.25042255,0.00013699,2]
[344743692,1733763111113,-500.0,0.00013699,2]
[344743693,1733763111123,-500.0,0.00013699,2]
[344743694,1733763111132,-500.0,0.00013699,2]
[344743695,1733763111142,-500.0,0.00013699,2]
[344743696,1733763111151,-300.11530689,0.00013699,2]
[344743697,1733763111161,-162.88189204,0.00013699,2]
[344743698,1733763111171,-500.0,0.00013699,2]
[344743699,1733763111180,-528.69655978,0.00013699,2]
[344743700,1733763111189,-159.4892343,0.00013699,2]
[344743701,1733763111210,-162.60923756,0.00013699,2]
[344743702,1733763111221,-500.0,0.00013699,2]
[344743703,1733763111230,-500.0,0.00013699,2]
[344743704,1733763111240,-500.0,0.00013699,2]
[344743705,1733763111249,-502.47837612,0.00013699,2]
[344743706,1733763111259,-515.45827413,0.00013699,2]
[344743707,1733763111268,-500.0,0.00013699,2]
[344743708,1733763111278,-205.94330695,0.00013699,2]
[344743709,1733763111287,-500.0,0.00013699,2]
[344743710,1733763111298,-399.71434777,0.00013699,2]
[344743711,1733763111307,-503.87111716,0.00013699,2]
[344743712,1733763111317,-159.90021864,0.00013699,2]
[344743713,1733763111327,-514.39336223,0.00013699,2]
[344743714,1733763111339,-2635.3575892,0.000137,2]
[344743715,1733763111349,-1588.38,0.000137,2]
[344743716,1733763111358,-1588.38,0.000137,2]
[344743717,1733763111368,-1588.38,0.000137,2]
[344743718,1733763111377,-1588.38,0.000137,2]
[344743719,1733763111387,-1588.38,0.000137,2]
[344743720,1733763111397,-1588.38,0.000137,2]